[Event "NJSK 2026 Jeugd A"]
[Site "Helmond, Netherlands"]
[Date "2026.04.27"]
[Round "3.5"]
[White "Madularea, David"]
[Black "Kazarjan, Gachatur"]
[Result "0-1"]
[TimeControl "90min/40moves + 30min + 30sec/move"]
[WhiteTitle "-"]
[BlackTitle "-"]
[WhiteFideId "1070215"]
[BlackFideId "1068750"]
[WhiteElo "2261"]
[BlackElo "2272"]

1. e4 {[%emt 00:00:38]} c5 {[%clk 01:29:41]} {[%emt 00:00:39]} 2. Nf3 {[%clk
01:31:21]} {[%emt 00:00:11]} g6 {[%clk 01:29:47]} {[%emt 00:00:24]} 3. c3
{[%clk 01:31:33]} {[%emt 00:00:18]} Bg7 {[%clk 01:30:11]} {[%emt 00:00:06]} 4.
d4 {[%clk 01:31:47]} {[%emt 00:00:16]} cxd4 {[%clk 01:30:37]} {[%emt 00:00:05]}
5. cxd4 {[%clk 01:32:11]} {[%emt 00:00:06]} d5 {[%clk 01:31:04]} {[%emt
00:00:03]} 6. e5 {[%clk 01:31:32]} {[%emt 00:01:08]} Nc6 {[%clk 01:31:25]}
{[%emt 00:00:09]} 7. h3 {[%clk 01:27:43]} {[%emt 00:04:19]} Nh6 {[%clk
01:31:40]} {[%emt 00:00:15]} 8. Bb5 {[%clk 01:27:37]} {[%emt 00:00:37]} O-O
{[%clk 01:32:03]} {[%emt 00:00:06]} 9. Nc3 {[%clk 01:26:35]} {[%emt 00:01:32]}
f6 {[%clk 01:32:25]} {[%emt 00:00:09]} 10. exf6 {[%clk 01:24:01]} {[%emt
00:03:04]} Rxf6 {[%clk 01:32:45]} {[%emt 00:00:09]} 11. O-O {[%clk 01:21:32]}
{[%emt 00:02:59]} Rxf3 {[%clk 01:32:25]} {[%emt 00:00:50]} 12. Qxf3 {[%clk
01:20:45]} {[%emt 00:01:17]} Nxd4 {[%clk 01:32:48]} {[%emt 00:00:08]} 13. Qd3
{[%clk 01:09:14]} {[%emt 00:12:01]} e5 {[%clk 01:28:12]} {[%emt 00:05:06]} 14.
Ba4 {[%clk 01:05:30]} {[%emt 00:04:14]} Be6 {[%clk 01:26:04]} {[%emt 00:02:37]}
15. Bxh6 {[%clk 00:50:33]} {[%emt 00:15:27]} Bxh6 {[%clk 01:25:58]} {[%emt
00:00:36]} 16. Ne2 {[%clk 00:50:08]} {[%emt 00:00:55]} Nc6 {[%clk 01:04:17]}
{[%emt 00:22:11]} 17. Rad1 {[%clk 00:47:20]} {[%emt 00:03:19]} Qf6 {[%clk
01:02:11]} {[%emt 00:02:35]} 18. Bb3 {[%clk 00:45:54]} {[%emt 00:01:57]} Rd8
{[%clk 01:01:43]} {[%emt 00:00:58]} 19. Qb5 {[%clk 00:40:40]} {[%emt 00:05:44]}
Qf7 {[%clk 01:01:31]} {[%emt 00:00:42]} 20. Qa4 {[%clk 00:39:37]} {[%emt
00:01:32]} Bf8 {[%clk 00:58:36]} {[%emt 00:03:25]} 21. Qh4 {[%clk 00:35:38]}
{[%emt 00:04:28]} Be7 {[%clk 00:57:52]} {[%emt 00:01:15]} 22. Qg3 {[%clk
00:36:02]} {[%emt 00:00:06]} Qf5 {[%clk 00:50:21]} {[%emt 00:08:01]} 23. Qd3
{[%clk 00:31:06]} {[%emt 00:05:26]} Qf7 {[%clk 00:43:53]} {[%emt 00:06:58]} 24.
a3 {[%clk 00:29:25]} {[%emt 00:02:11]} Bc5 {[%clk 00:43:09]} {[%emt 00:01:14]}
25. Qc3 {[%clk 00:27:49]} {[%emt 00:02:05]} Bb6 {[%clk 00:42:22]} {[%emt
00:01:17]} 26. Ba4 {[%clk 00:26:21]} {[%emt 00:01:59]} d4 {[%clk 00:39:58]}
{[%emt 00:02:54]} 27. Qg3 {[%clk 00:26:27]} {[%emt 00:00:23]} Bc4 {[%clk
00:34:49]} {[%emt 00:05:40]} 28. Rfe1 {[%clk 00:17:16]} {[%emt 00:09:41]} Bc7
{[%clk 00:25:21]} {[%emt 00:09:56]} 29. Qh4 {[%clk 00:10:23]} {[%emt 00:07:25]}
b5 {[%clk 00:24:01]} {[%emt 00:01:50]} 30. Bc2 {[%clk 00:09:21]} {[%emt
00:01:32]} d3 {[%clk 00:22:53]} {[%emt 00:01:37]} 31. Bxd3 {[%clk 00:09:33]}
{[%emt 00:00:18]} Rxd3 {[%clk 00:17:47]} {[%emt 00:05:36]} 32. Nc3 {[%clk
00:08:16]} {[%emt 00:01:47]} Rxd1 {[%clk 00:14:18]} {[%emt 00:04:00]} 33. Rxd1
{[%clk 00:08:42]} {[%emt 00:00:03]} Qf4 {[%clk 00:14:06]} {[%emt 00:00:42]} 34.
Qxf4 {[%clk 00:08:56]} {[%emt 00:00:17]} exf4 {[%clk 00:14:31]} {[%emt
00:00:05]} 35. b3 {[%clk 00:05:50]} {[%emt 00:03:37]} Bxb3 {[%clk 00:14:55]}
{[%emt 00:00:06]} 36. Rd7 {[%clk 00:06:16]} {[%emt 00:00:03]} Be5 {[%clk
00:14:13]} {[%emt 00:01:12]} 37. Nxb5 {[%clk 00:06:42]} {[%emt 00:00:04]} Be6
{[%clk 00:14:32]} {[%emt 00:00:12]} 38. Rd2 {[%clk 00:04:23]} {[%emt 00:02:48]}
a6 {[%clk 00:13:02]} {[%emt 00:02:00]} 39. Nd6 {[%clk 00:04:48]} {[%emt
00:00:05]} Nd4 {[%clk 00:13:17]} {[%emt 00:00:15]} 40. Ne4 {[%clk 00:04:34]}
{[%emt 00:00:43]} Bc4 {[%clk 00:08:48]} {[%emt 00:04:59]} 41. Kh1 {[%clk
00:24:44]} {[%emt 00:10:20]} Kf8 {[%clk 00:36:02]} {[%emt 00:03:16]} 42. Rd1
{[%clk 00:23:39]} {[%emt 00:01:36]} Ke7 {[%clk 00:32:07]} {[%emt 00:04:25]} 43.
Nd2 {[%clk 00:22:55]} {[%emt 00:01:13]} Bd5 {[%clk 00:30:24]} {[%emt 00:02:14]}
44. Rb1 {[%clk 00:22:40]} {[%emt 00:00:44]} Bc7 {[%clk 00:28:26]} {[%emt
00:02:28]} 45. Re1+ {[%clk 00:19:26]} {[%emt 00:03:44]} Ne6 {[%clk 00:26:35]}
{[%emt 00:02:21]} 46. Ne4 {[%clk 00:16:58]} {[%emt 00:02:58]} Bxe4 {[%clk
00:24:06]} {[%emt 00:03:00]} 47. Rxe4 {[%clk 00:17:23]} {[%emt 00:00:05]} a5
{[%clk 00:24:30]} {[%emt 00:00:05]} 48. Kg1 {[%clk 00:16:40]} {[%emt 00:01:13]}
Kd6 {[%clk 00:24:47]} {[%emt 00:00:14]} 49. Kf1 {[%clk 00:13:30]} {[%emt
00:03:40]} Kd5 {[%clk 00:24:16]} {[%emt 00:01:01]} 50. Re1 {[%clk 00:12:35]}
{[%emt 00:01:25]} Bd6 {[%clk 00:23:24]} {[%emt 00:01:21]} 51. Rb1 {[%clk
00:12:16]} {[%emt 00:00:49]} Nd4 {[%clk 00:20:03]} {[%emt 00:03:52]} 52. Rb7
{[%clk 00:12:39]} {[%emt 00:00:06]} Bxa3 {[%clk 00:20:27]} {[%emt 00:00:06]} 53.
Rxh7 {[%clk 00:13:01]} {[%emt 00:00:09]} Bb4 {[%clk 00:18:34]} {[%emt
00:02:23]} 54. Rg7 {[%clk 00:12:14]} {[%emt 00:01:16]} a4 {[%clk 00:17:56]}
{[%emt 00:01:08]} 55. Rxg6 {[%clk 00:12:38]} {[%emt 00:00:06]} Ne6 {[%clk
00:18:17]} {[%emt 00:00:10]} 56. Rg8 {[%clk 00:09:30]} {[%emt 00:03:38]} Bf8
{[%clk 00:17:47]} {[%emt 00:01:00]} 57. Rh8 {[%clk 00:09:55]} {[%emt 00:00:04]}
Kc4 {[%clk 00:16:57]} {[%emt 00:01:21]} 58. Rh5 {[%clk 00:10:17]} {[%emt
00:00:07]} Bc5 {[%clk 00:15:54]} {[%emt 00:01:34]} 59. Rh6 {[%clk 00:09:27]}
{[%emt 00:01:19]} Nc7 {[%clk 00:16:03]} {[%emt 00:00:22]} 60. Rf6 {[%clk
00:08:48]} {[%emt 00:01:08]} a3 {[%clk 00:10:49]} {[%emt 00:05:45]} 61. Rxf4+
{[%clk 00:09:13]} {[%emt 00:00:05]} Bd4 {[%clk 00:10:46]} {[%emt 00:00:33]} 62.
Rf3 {[%clk 00:08:40]} {[%emt 00:01:02]} a2 {[%clk 00:10:48]} {[%emt 00:00:29]}
63. Ra3 {[%clk 00:09:04]} {[%emt 00:00:05]} a1=Q+ {[%clk 00:11:14]} {[%emt
00:00:04]} 64. Rxa1 {[%clk 00:09:30]} {[%emt 00:00:05]} Bxa1 {[%clk 00:11:41]}
{[%emt 00:00:03]} 65. Ke2 {[%clk 00:08:27]} {[%emt 00:01:32]} Kd4 {[%clk
00:11:32]} {[%emt 00:00:39]} 66. Kf3 {[%clk 00:08:22]} {[%emt 00:00:35]} Ke5
{[%clk 00:11:30]} {[%emt 00:00:32]} 67. Kg4 {[%clk 00:05:51]} {[%emt 00:03:01]}
Bd4 {[%clk 00:11:41]} {[%emt 00:00:20]} 68. f4+ {[%clk 00:05:35]} {[%emt
00:00:45]} Kf6 {[%clk 00:10:46]} {[%emt 00:01:26]} 69. Kf3 {[%clk 00:05:33]}
{[%emt 00:00:31]} Bb2 {[%clk 00:11:04]} {[%emt 00:00:10]} 70. g3 {[%clk
00:01:24]} {[%emt 00:04:42]} Ne6 {[%clk 00:10:47]} {[%emt 00:00:46]} 71. Ke4
{[%clk 00:01:22]} {[%emt 00:00:32]} Bc1 {[%clk 00:10:30]} {[%emt 00:00:47]} 72.
h4 {[%clk 00:01:11]} {[%emt 00:00:41]} Bd2 {[%clk 00:09:00]} {[%emt 00:02:00]}
73. Kf3 {[%clk 00:00:36]} {[%emt 00:01:05]} Kg6 {[%clk 00:09:05]} {[%emt
00:00:26]} 74. Ke2 {[%clk 00:00:34]} {[%emt 00:00:32]} Ba5 {[%clk 00:09:13]}
{[%emt 00:00:22]} 75. Kf3 {[%clk 00:01:00]} {[%emt 00:00:04]} Bc7 {[%clk
00:09:12]} {[%emt 00:00:31]} 76. Ke4 {[%clk 00:00:51]} {[%emt 00:00:39]} Kh5
{[%clk 00:08:20]} {[%emt 00:01:21]} 77. f5 {[%clk 00:00:31]} {[%emt 00:00:50]}
Nd8 {[%clk 00:08:19]} {[%emt 00:00:31]} 78. Kf3 {[%clk 00:00:32]} {[%emt
00:00:30]} Nf7 {[%clk 00:08:31]} {[%emt 00:00:18]} 79. f6 {[%clk 00:00:33]}
{[%emt 00:00:28]} Be5 {[%clk 00:08:39]} {[%emt 00:00:22]} 80. Ke4 {[%clk
00:00:46]} {[%emt 00:00:18]} Bxg3 {[%clk 00:08:58]} {[%emt 00:00:11]} 81. Kf5
{[%clk 00:01:03]} {[%emt 00:00:12]} Bxh4 {[%clk 00:09:21]} {[%emt 00:00:08]} 82.
Kf4 {[%clk 00:01:23]} {[%emt 00:00:09]} Bxf6 {[%clk 00:09:42]} {[%emt
00:00:10]} 83. Kf5 {[%clk 00:01:30]} {[%emt 00:00:22]} Bg5 {[%clk 00:10:02]}
{[%emt 00:00:09]} 84. Ke4 {[%clk 00:01:42]} {[%emt 00:00:19]} Kg4 {[%clk
00:10:16]} {[%emt 00:00:16]} 85. Kd5 {[%clk 00:01:55]} {[%emt 00:00:17]} Kf5
{[%clk 00:10:39]} {[%emt 00:00:07]} 86. Kd4 {[%clk 00:02:18]} {[%emt 00:00:07]}
Bf4 {[%clk 00:11:01]} {[%emt 00:00:08]} 87. Kd5 {[%clk 00:02:42]} {[%emt
00:00:06]} Be5 {[%clk 00:11:14]} {[%emt 00:00:17]} 88. Kc4 {[%clk 00:02:51]}
{[%emt 00:00:22]} Ke4 {[%clk 00:11:29]} {[%emt 00:00:14]} 89. Kc5 {[%clk
00:03:15]} {[%emt 00:00:07]} Nd8 {[%clk 00:11:53]} {[%emt 00:00:05]} 90. Kb6
{[%clk 00:03:20]} {[%emt 00:00:25]} Bd6 {[%clk 00:11:59]} {[%emt 00:00:24]} 91.
Ka7 {[%clk 00:03:10]} {[%emt 00:00:41]} Kd5 {[%clk 00:12:15]} {[%emt 00:00:14]}
92. Ka8 {[%clk 00:03:32]} {[%emt 00:00:08]} Bc5 {[%clk 00:11:21]} {[%emt
00:01:23]} 93. Kb8 {[%clk 00:03:54]} {[%emt 00:00:08]} Kc6 {[%clk 00:11:42]}
{[%emt 00:00:09]} 94. Ka8 {[%clk 00:04:06]} {[%emt 00:00:20]} Ne6 {[%clk
00:12:06]} {[%emt 00:00:05]} 95. Kb8 {[%clk 00:04:31]} {[%emt 00:00:04]} Nc7
{[%clk 00:12:17]} {[%emt 00:00:19]} 96. Kc8 {[%clk 00:04:57]} {[%emt 00:00:05]}
Ba7 {[%clk 00:12:43]} {[%emt 00:00:04]} 97. Kd8 {[%clk 00:05:22]} {[%emt
00:00:05]} Nd5 {[%clk 00:12:55]} {[%emt 00:00:18]} 98. Ke8 {[%clk 00:05:44]}
{[%emt 00:00:08]} Kd6 {[%clk 00:13:19]} {[%emt 00:00:06]} 99. Kf7 {[%clk
00:06:04]} {[%emt 00:00:10]} Ne7 {[%clk 00:13:07]} {[%emt 00:00:41]} 100. Kg7
{[%clk 00:05:44]} {[%emt 00:00:49]} Be3 {[%clk 00:13:23]} {[%emt 00:00:16]} 101.
Kf6 {[%clk 00:04:59]} {[%emt 00:01:14]} Bf4 {[%clk 00:13:45]} {[%emt 00:00:08]}
102. Kf7 {[%clk 00:05:24]} {[%emt 00:00:05]} Bg5 {[%clk 00:13:59]} {[%emt
00:00:16]} 103. Ke8 {[%clk 00:05:36]} {[%emt 00:00:19]} Nc6 {[%clk 00:14:14]}
{[%emt 00:00:13]} 104. Kf7 {[%clk 00:05:55]} {[%emt 00:00:12]} Ne5+ {[%clk
00:14:40]} {[%emt 00:00:05]} 105. Ke8 {[%clk 00:06:06]} {[%emt 00:00:18]} Kc7
{[%clk 00:15:00]} {[%emt 00:00:10]} 106. Kf8 {[%clk 00:06:32]} {[%emt
00:00:04]} Kd8 {[%clk 00:15:24]} {[%emt 00:00:06]} 107. Kg8 {[%clk 00:06:52]}
{[%emt 00:00:10]} Ke7 {[%clk 00:15:44]} {[%emt 00:00:10]} 108. Kg7 {[%clk
00:07:15]} {[%emt 00:00:06]} Ke8 {[%clk 00:16:10]} {[%emt 00:00:05]} 109. Kg8
{[%clk 00:07:39]} {[%emt 00:00:05]} Bh6 {[%clk 00:16:35]} {[%emt 00:00:05]} 110.
Kh7 {[%clk 00:08:05]} {[%emt 00:00:04]} Bf8 {[%clk 00:16:58]} {[%emt 00:00:07]}
111. Kg8 {[%clk 00:08:31]} {[%emt 00:00:04]} Ke7 {[%clk 00:17:14]} {[%emt
00:00:14]} 112. Kh8 {[%clk 00:08:54]} {[%emt 00:00:07]} Kf7 {[%clk 00:17:37]}
{[%emt 00:00:07]} 113. Kh7 {[%clk 00:09:20]} {[%emt 00:00:04]} Ng4 {[%clk
00:18:01]} {[%emt 00:00:06]} 114. Kh8 {[%clk 00:09:47]} {[%emt 00:00:04]} Bg7+
{[%clk 00:18:28]} {[%emt 00:00:03]} 115. Kh7 {[%clk 00:10:12]} {[%emt
00:00:05]} Nf6 {[%clk 00:18:22]} {[%emt 00:00:04]} 0-1

[Event "NJSK 2026 Jeugd A"]
[Site "Helmond, Netherlands"]
[Date "2026.04.27"]
[Round "3.6"]
[White "Arnold, Rhys"]
[Black "Van Arendonk, Polle"]
[Result "1/2-1/2"]
[TimeControl "90min/40moves + 30min + 30sec/move"]
[WhiteTitle "-"]
[BlackTitle "-"]
[WhiteFideId "1068849"]
[BlackFideId "1072048"]
[WhiteElo "2315"]
[BlackElo "2060"]

1. e4 {[%clk 01:30:59]} {[%emt 00:02:36]} e5 {[%clk 01:30:57]} {[%emt
00:00:04]} 2. Nf3 {[%clk 01:31:25]} {[%emt 00:00:05]} Nc6 {[%clk 01:31:24]}
{[%emt 00:00:03]} 3. Bb5 {[%clk 01:31:50]} {[%emt 00:00:05]} a6 {[%clk
01:31:50]} {[%emt 00:00:03]} 4. Ba4 {[%clk 01:32:14]} {[%emt 00:00:06]} Nf6
{[%clk 01:32:16]} {[%emt 00:00:04]} 5. O-O {[%clk 01:32:38]} {[%emt 00:00:06]}
Be7 {[%clk 01:32:41]} {[%emt 00:00:06]} 6. d3 {[%clk 01:33:04]} {[%emt
00:00:03]} b5 {[%clk 01:33:06]} {[%emt 00:00:05]} 7. Bb3 {[%clk 01:33:31]}
{[%emt 00:00:02]} d6 {[%clk 01:33:21]} {[%emt 00:00:16]} 8. Bd2 {[%clk
01:33:56]} {[%emt 00:00:04]} Bg4 {[%clk 01:32:15]} {[%emt 00:01:37]} 9. c3
{[%clk 01:34:05]} {[%emt 00:00:20]} Na5 {[%clk 01:32:31]} {[%emt 00:00:15]} 10.
Bc2 {[%clk 01:34:31]} {[%emt 00:00:04]} c5 {[%clk 01:32:54]} {[%emt 00:00:07]}
11. h3 {[%clk 01:34:12]} {[%emt 00:00:49]} Be6 {[%clk 01:27:13]} {[%emt
00:06:10]} 12. d4 {[%clk 01:32:26]} {[%emt 00:02:17]} Qc7 {[%clk 01:24:53]}
{[%emt 00:02:50]} 13. d5 {[%clk 01:31:25]} {[%emt 00:01:31]} Bd7 {[%clk
01:25:08]} {[%emt 00:00:15]} 14. b3 {[%clk 01:31:49]} {[%emt 00:00:06]} O-O
{[%clk 01:21:51]} {[%emt 00:03:47]} 15. Be3 {[%clk 01:27:54]} {[%emt 00:04:25]}
Nb7 {[%clk 01:18:29]} {[%emt 00:03:52]} 16. c4 {[%clk 01:21:31]} {[%emt
00:06:52]} bxc4 {[%clk 01:16:09]} {[%emt 00:02:51]} 17. bxc4 {[%clk 01:21:54]}
{[%emt 00:00:07]} Na5 {[%clk 01:15:03]} {[%emt 00:01:36]} 18. Nbd2 {[%clk
01:16:29]} {[%emt 00:05:54]} Rab8 {[%clk 01:09:26]} {[%emt 00:06:08]} 19. Ne1
{[%clk 01:12:32]} {[%emt 00:04:26]} Bc8 {[%clk 01:00:36]} {[%emt 00:09:20]} 20.
Qe2 {[%clk 01:08:59]} {[%emt 00:04:03]} Nd7 {[%clk 00:54:57]} {[%emt 00:06:09]}
21. Nb3 {[%clk 01:08:21]} {[%emt 00:01:08]} Bf6 {[%clk 00:49:16]} {[%emt
00:06:12]} 22. Bd2 {[%clk 01:03:45]} {[%emt 00:05:06]} Nb7 {[%clk 00:49:19]}
{[%emt 00:00:26]} 23. Bc3 {[%clk 01:03:16]} {[%emt 00:00:59]} g6 {[%clk
00:33:37]} {[%emt 00:16:13]} 24. Nd3 {[%clk 01:01:07]} {[%emt 00:02:38]} Bg7
{[%clk 00:32:14]} {[%emt 00:01:53]} 25. Nd2 {[%clk 00:52:19]} {[%emt 00:10:28]}
Nd8 {[%clk 00:28:55]} {[%emt 00:03:50]} 26. Kh1 {[%clk 00:45:31]} {[%emt
00:07:18]} f6 {[%clk 00:25:29]} {[%emt 00:03:56]} 27. f4 {[%clk 00:42:08]}
{[%emt 00:03:52]} exf4 {[%clk 00:25:38]} {[%emt 00:00:22]} 28. Nxf4 {[%clk
00:40:33]} {[%emt 00:02:05]} Ne5 {[%clk 00:25:43]} {[%emt 00:00:25]} 29. Rf2
{[%clk 00:38:35]} {[%emt 00:02:27]} Ndf7 {[%clk 00:22:05]} {[%emt 00:04:08]} 30.
Raf1 {[%clk 00:38:20]} {[%emt 00:00:45]} Qe7 {[%clk 00:20:43]} {[%emt
00:01:52]} 31. Rb1 {[%clk 00:33:53]} {[%emt 00:04:57]} Rxb1+ {[%clk 00:19:31]}
{[%emt 00:01:43]} 32. Bxb1 {[%clk 00:34:19]} {[%emt 00:00:04]} Bd7 {[%clk
00:19:25]} {[%emt 00:00:36]} 33. Bc2 {[%clk 00:34:42]} {[%emt 00:00:06]} Bh6
{[%clk 00:15:52]} {[%emt 00:04:03]} 34. Qf1 {[%clk 00:32:45]} {[%emt 00:02:26]}
Kg7 {[%clk 00:14:07]} {[%emt 00:02:16]} 35. Qb1 {[%clk 00:31:05]} {[%emt
00:02:10]} Bxf4 {[%clk 00:13:43]} {[%emt 00:00:54]} 36. Rxf4 {[%clk 00:31:15]}
{[%emt 00:00:20]} g5 {[%clk 00:13:47]} {[%emt 00:00:27]} 37. Rf1 {[%clk
00:30:24]} {[%emt 00:01:20]} Bc8 {[%clk 00:12:57]} {[%emt 00:01:21]} 38. Qe1
{[%clk 00:29:02]} {[%emt 00:01:50]} h5 {[%clk 00:11:50]} {[%emt 00:01:38]} 39.
h4 {[%clk 00:24:06]} {[%emt 00:05:26]} Nh6 {[%clk 00:03:26]} {[%emt 00:08:54]}
40. Bd1 {[%clk 00:20:19]} {[%emt 00:04:16]} Nhg4 {[%clk 00:01:37]} {[%emt
00:02:20]} 41. hxg5 {[%clk 00:01:49]} {[%emt 00:19:00]} fxg5 {[%clk 00:01:11]}
{[%emt 00:00:56]} 42. Rxf8 {[%clk 00:29:22]} {[%emt 00:02:57]} Kxf8 {[%clk
00:29:17]} {[%emt 00:02:24]} 43. Bxg4 {[%clk 00:25:44]} {[%emt 00:04:07]} Bxg4
{[%clk 00:27:48]} {[%emt 00:02:00]} 44. Kg1 {[%clk 00:22:57]} {[%emt 00:03:17]}
h4 {[%clk 00:25:15]} {[%emt 00:03:03]} 45. a4 {[%clk 00:16:19]} {[%emt
00:07:08]} Kf7 {[%clk 00:10:46]} {[%emt 00:15:00]} 46. Qf1+ {[%clk 00:15:09]}
{[%emt 00:01:39]} Kg6 {[%clk 00:10:38]} {[%emt 00:00:38]} 47. Qb1 {[%clk
00:14:06]} {[%emt 00:01:32]} Be2 {[%clk 00:08:35]} {[%emt 00:02:34]} 48. Qe1
{[%clk 00:08:28]} {[%emt 00:06:08]} Bh5 {[%clk 00:07:26]} {[%emt 00:01:39]} 49.
Qb1 {[%clk 00:06:06]} {[%emt 00:02:52]} g4 {[%clk 00:07:10]} {[%emt 00:00:46]}
50. Qb8 {[%clk 00:05:53]} {[%emt 00:00:42]} Kh7 {[%clk 00:06:39]} {[%emt
00:01:02]} 51. Qc8 {[%clk 00:04:53]} {[%emt 00:01:29]} g3 {[%clk 00:05:04]}
{[%emt 00:02:06]} 52. Qf5+ {[%clk 00:04:32]} {[%emt 00:00:51]} Bg6 {[%clk
00:05:26]} {[%emt 00:00:08]} 53. Qf4 {[%clk 00:04:45]} {[%emt 00:00:17]} Kg8
{[%clk 00:03:24]} {[%emt 00:02:33]} 54. a5 {[%clk 00:04:56]} {[%emt 00:00:19]}
Qf7 {[%clk 00:01:28]} {[%emt 00:02:26]} 55. Bxe5 {[%clk 00:04:24]} {[%emt
00:01:01]} dxe5 {[%clk 00:01:57]} {[%emt 00:00:01]} 56. Qxf7+ {[%clk 00:04:45]}
{[%emt 00:00:09]} Kxf7 {[%clk 00:02:26]} {[%emt 00:00:01]} 57. Nb3 {[%clk
00:04:22]} {[%emt 00:00:53]} Ke7 {[%clk 00:02:24]} {[%emt 00:00:32]} 58. Nxc5
{[%clk 00:04:22]} {[%emt 00:00:30]} Kd6 {[%clk 00:02:41]} {[%emt 00:00:13]} 59.
Nxa6 {[%clk 00:04:15]} {[%emt 00:00:36]} Bxe4 {[%clk 00:02:58]} {[%emt
00:00:13]} 60. Nb4 {[%clk 00:04:23]} {[%emt 00:00:23]} Bf5 {[%clk 00:02:30]}
{[%emt 00:00:58]} 61. a6 {[%clk 00:04:16]} {[%emt 00:00:38]} Bc8 {[%clk
00:02:44]} {[%emt 00:00:14]} 62. a7 {[%clk 00:04:10]} {[%emt 00:00:36]} Bb7
{[%clk 00:03:14]} {[%emt 00:00:01]} 63. Nd3 {[%clk 00:02:57]} {[%emt 00:01:42]}
e4 {[%clk 00:03:23]} {[%emt 00:00:21]} 64. Nf4 {[%clk 00:03:23]} {[%emt
00:00:04]} Kc5 {[%clk 00:01:15]} {[%emt 00:02:39]} 65. Kf1 {[%clk 00:02:26]}
{[%emt 00:01:27]} Kb6 {[%clk 00:01:05]} {[%emt 00:00:40]} 66. d6 {[%clk
00:02:00]} {[%emt 00:00:56]} Bc6 {[%clk 00:01:19]} {[%emt 00:00:16]} 67. c5+
{[%clk 00:00:32]} {[%emt 00:01:58]} Kxa7 {[%clk 00:01:45]} {[%emt 00:00:04]} 68.
Ke2 {[%clk 00:00:35]} {[%emt 00:00:26]} Ka6 {[%clk 00:00:50]} {[%emt 00:01:26]}
69. Ke3 {[%clk 00:00:35]} {[%emt 00:00:30]} Kb5 {[%clk 00:01:08]} {[%emt
00:00:13]} 70. Kd4 {[%clk 00:00:50]} {[%emt 00:00:15]} e3 {[%clk 00:01:23]}
{[%emt 00:00:14]} 71. Ne2 {[%clk 00:01:05]} {[%emt 00:00:16]} Bd7 {[%clk
00:01:07]} {[%emt 00:00:46]} 72. Kd5 {[%clk 00:00:42]} {[%emt 00:00:53]} Bc6
{[%clk 00:01:36]} 73. Kd4 {[%clk 00:00:56]} {[%emt 00:00:15]} Bd7 {[%clk
00:02:03]} {[%emt 00:00:04]} 74. Nc3+ {[%clk 00:00:35]} {[%emt 00:00:52]} Kc6
{[%clk 00:02:17]} {[%emt 00:00:16]} 75. Kxe3 {[%clk 00:00:55]} {[%emt
00:00:10]} Kxc5 {[%clk 00:02:13]} {[%emt 00:00:33]} 76. Ne4+ {[%clk 00:01:19]}
{[%emt 00:00:05]} Kc6 {[%clk 00:02:11]} {[%emt 00:00:32]} 77. Kf4 {[%clk
00:00:43]} {[%emt 00:01:06]} h3 {[%clk 00:02:20]} {[%emt 00:00:21]} 78. Kxg3
{[%clk 00:01:02]} {[%emt 00:00:11]} hxg2 {[%clk 00:02:45]} {[%emt 00:00:05]} 79.
Kxg2 {[%clk 00:01:30]} {[%emt 00:00:03]} Bf5 {[%clk 00:03:07]} {[%emt
00:00:08]} 80. d7 {[%clk 00:01:35]} {[%emt 00:00:24]} Bxe4+ {[%clk 00:03:30]}
{[%emt 00:00:07]} 1/2-1/2